fUSD/lending_fUSD_20260527
["ID","MTS","AMOUNT","RATE_DAILY","PERIOD"]
[423080118,1779829841000,-583.17,0.000369,7]
[423080119,1779829841000,-16800.0,0.000369,13]
[423080117,1779829841000,-2906.1621,0.00036861,2]
[423080121,1779829841000,-919.14,0.0003691,7]
[423080120,1779829841000,-200.0,0.0003691,30]
[423080123,1779829841000,-487.61350891,0.00036932,30]
[423080127,1779829841000,-616.72402144,0.00036987,2]
[423080124,1779829841000,-152.0,0.00036933,4]
[423080122,1779829841000,-683.34,0.0003691,7]
[423080125,1779829841000,-412.04,0.00036961,60]
[423080128,1779829841000,-6030.1936,0.00036989,2]
[423080130,1779829841000,-2906.1621,0.00036989,2]
[423080129,1779829841000,-2106.9828,0.00036989,2]
[423080138,1779829841000,-500.0,0.00037,14]
[423080134,1779829841000,-168.75906586,0.00037,2]
[423080137,1779829841000,-181.517,0.00037,2]
[423080135,1779829841000,-4500.0,0.00037,2]
[423080132,1779829841000,-210.0,0.00037,30]
[423080131,1779829841000,-631.0,0.00037,30]
[423080136,1779829841000,-150.0,0.00037,2]
[423080133,1779829841000,-365.0,0.00037,2]
[423080074,1779829841000,-229.24,0.00036423,30]
[423080111,1779829841000,-500.0,0.00036849,120]
[423080106,1779829841000,-1640.42014877,0.000368,2]
[423080126,1779829841000,-150.0,0.00036986,60]
[423080113,1779829841000,-500.0,0.00036849,120]
[423080076,1779829841000,-6030.1936,0.00036477,2]
[423080108,1779829841000,-598.84,0.00036849,120]
[423080078,1779829841000,-2906.1621,0.00036477,2]
[423080077,1779829841000,-2106.9828,0.00036477,2]
[423080079,1779829841000,-487.61350891,0.00036493,30]
[423080082,1779829841000,-30043.97611207,0.000365,10]
[423080081,1779829841000,-300.0,0.00036499,10]
[423080097,1779829841000,-393.92,0.00036725,7]
[423080087,1779829841000,-2250.054,0.000366,120]
[423080094,1779829841000,-500.0,0.00036656,120]
[423080095,1779829841000,-500.0,0.00036656,120]
[423080086,1779829841000,-2250.054,0.000366,120]
[423080088,1779829841000,-2250.05,0.000366,120]
[423080098,1779829841000,-683.34,0.00036725,7]
[423080090,1779829841000,-2106.9828,0.00036605,2]
[423080089,1779829841000,-6030.1936,0.00036605,2]
[423080110,1779829841000,-1573.45,0.00036849,2]
[423080091,1779829841000,-2906.1621,0.00036605,2]
[423080105,1779829841000,-257.0191111,0.000368,2]
[423080102,1779829841000,-2906.1621,0.00036733,2]
[423080104,1779829841000,-487.61350891,0.00036767,30]
[423080101,1779829841000,-2106.9828,0.00036733,2]
[423080103,1779829841000,-372.0,0.0003676,120]
[423080107,1779829841000,-13500.0,0.000368,13]
[423080100,1779829841000,-6030.1936,0.00036733,2]
[423080093,1779829841000,-487.61350891,0.0003663,30]
[423080096,1779829841000,-1504.541045,0.000367,23]
[423080092,1779829841000,-360.0,0.00036626,2]
[423080099,1779829841000,-1171.44,0.00036725,7]
[423080181,1779829842000,-201.54521686,0.00037225,2]
[423080185,1779829842000,-1573.45,0.00037235,2]
[423080175,1779829842000,-946.29,0.000372,90]
[423080178,1779829842000,-1500.0,0.000372,23]
[423080180,1779829842000,-487.61350891,0.00037205,30]
[423080187,1779829842000,-1573.45,0.00037235,2]
[423080177,1779829842000,-198.46753114,0.000372,120]
[423080174,1779829842000,-250.0,0.000372,2]
[423080171,1779829842000,-250.0,0.000372,2]
[423080170,1779829842000,-250.0,0.000372,2]
[423080179,1779829842000,-612.9764244,0.000372,2]
[423080176,1779829842000,-786.28,0.000372,90]
[423080182,1779829842000,-150.0,0.00037235,2]
[423080198,1779829842000,-178781.194614,0.00037235,2]
[423080186,1779829842000,-1573.45,0.00037235,2]
[423080183,1779829842000,-14389.28932029,0.00037235,2]
[423080188,1779829842000,-500.0,0.00037235,120]
[423080189,1779829842000,-500.0,0.00037235,120]
[423080190,1779829842000,-500.0,0.00037235,120]
[423080191,1779829842000,-500.0,0.00037235,120]
[423080193,1779829842000,-500.0,0.00037235,120]
[423080199,1779829842000,-59498.81792561,0.00037235,2]
[423080200,1779829842000,-1269.5336,0.00037236,2]
[423080192,1779829842000,-500.0,0.00037235,120]
[423080197,1779829842000,-1585.50982,0.00037235,2]
[423080194,1779829842000,-500.0,0.00037235,120]
[423080173,1779829842000,-250.0,0.000372,2]
[423080184,1779829842000,-1573.45,0.00037235,2]
[423080172,1779829842000,-250.0,0.000372,2]
[423080140,1779829842000,-1584.11606853,0.00037,2]
[423080169,1779829842000,-250.0,0.000372,2]
[423080139,1779829842000,-17459.60048637,0.00037,2]
[423080196,1779829842000,-613048.28475,0.00037235,2]
[423080145,1779829842000,-234419.53517754,0.000371,2]
[423080146,1779829842000,-583.17,0.000371,7]
[423080141,1779829842000,-487.61350891,0.00037068,30]
[423080148,1779829842000,-188.50744339,0.000371,30]
[423080147,1779829842000,-188.50744341,0.000371,30]
[423080150,1779829842000,-2482.03985088,0.000371,30]
[423080149,1779829842000,-188.50744339,0.000371,30]
[423080142,1779829842000,-1573.45,0.00037099,2]
[423080151,1779829842000,-2482.03985086,0.000371,30]
[423080144,1779829842000,-500.0,0.00037099,120]
[423080143,1779829842000,-500.0,0.00037099,120]
[423080153,1779829842000,-375.0,0.00037105,2]
[423080152,1779829842000,-2482.03985086,0.000371,30]
[423080160,1779829842000,-300.0,0.00037191,2]
[423080161,1779829842000,-300.0,0.00037191,2]
[423080162,1779829842000,-300.0,0.00037191,2]
[423080155,1779829842000,-2106.9828,0.00037117,2]
[423080156,1779829842000,-2906.1621,0.00037117,2]
[423080154,1779829842000,-6030.1936,0.00037117,2]
[423080163,1779829842000,-300.0,0.00037191,2]
[423080159,1779829842000,-300.0,0.00037191,2]
[423080157,1779829842000,-259.0,0.00037135,2]
[423080158,1779829842000,-375.0,0.00037171,2]
[423080164,1779829842000,-300.0,0.00037191,2]
[423080166,1779829842000,-35000.0,0.00037198,2]
[423080167,1779829842000,-250.0,0.000372,2]
[423080168,1779829842000,-250.0,0.000372,2]
[423080165,1779829842000,-311.6,0.00037191,2]
[423080195,1779829842000,-500.0,0.00037235,120]
[423080230,1779829842000,-500.0,0.00037257,2]
[423080211,1779829842000,-150.0,0.0003725,120]
[423080234,1779829842000,-243.73620438,0.000373,30]
[423080238,1779829842000,-487.61350891,0.0003737,30]
[423080240,1779829842000,-5000.0,0.00037371,2]
[423080241,1779829842000,-5000.0,0.00037371,2]
[423080244,1779829842000,-6030.1936,0.00037373,2]
[423080247,1779829842000,-400.0,0.00037449,2]
[423080246,1779829842000,-2906.1621,0.00037373,2]
[423080202,1779829842000,-2000.0,0.00037236,2]
[423080248,1779829842000,-200.37,0.00037499,5]
[423080250,1779829842000,-6030.1936,0.00037501,2]
[423080245,1779829842000,-2106.9828,0.00037373,2]
[423080256,1779829842000,-503.57820675,0.00037552,60]
[423080251,1779829842000,-2106.9828,0.00037501,2]
[423080239,1779829842000,-5000.0,0.00037371,2]
[423080253,1779829842000,-487.61350891,0.00037507,30]
[423080254,1779829842000,-178.0,0.00037507,3]
[423080252,1779829842000,-2906.1621,0.00037501,2]
[423080257,1779829842000,-500.0,0.00037552,60]
[423080259,1779829842000,-1589.0,0.00037595,11]
[423080258,1779829842000,-4414.55143921,0.0003759,2]
[423080262,1779829842000,-327.70868647,0.00037599,120]
[423080267,1779829842000,-250.0,0.000376,2]
[423080268,1779829842000,-250.0,0.000376,2]
[423080265,1779829842000,-250.0,0.000376,2]
[423080261,1779829842000,-1573.45,0.00037599,2]
[423080264,1779829842000,-500.0,0.00037599,120]
[423080266,1779829842000,-250.0,0.000376,2]
[423080269,1779829842000,-250.0,0.000376,2]
[423080255,1779829842000,-1100.0,0.00037552,60]
[423080233,1779829842000,-762.15,0.00037257,2]
[423080249,1779829842000,-200.37,0.00037499,5]
[423080237,1779829842000,-330.0,0.00037344,44]
[423080213,1779829842000,-500.0,0.00037257,2]
[423080201,1779829842000,-1191.7038,0.00037236,2]
[423080203,1779829842000,-10000.0,0.00037236,2]
[423080215,1779829842000,-500.0,0.00037257,2]
[423080236,1779829842000,-372.0,0.000373,60]
[423080210,1779829842000,-2906.1621,0.00037245,2]
[423080204,1779829842000,-2000.0,0.00037236,2]
[423080216,1779829842000,-500.0,0.00037257,2]
[423080205,1779829842000,-10000.0,0.00037236,2]
[423080208,1779829842000,-2106.9828,0.00037245,2]
[423080206,1779829842000,-6030.1936,0.00037245,2]
[423080220,1779829842000,-500.0,0.00037257,2]
[423080218,1779829842000,-500.0,0.00037257,2]
[423080221,1779829842000,-500.0,0.00037257,2]
[423080217,1779829842000,-500.0,0.00037257,2]
[423080222,1779829842000,-500.0,0.00037257,2]
[423080219,1779829842000,-500.0,0.00037257,2]
[423080235,1779829842000,-583.17,0.000373,7]
[423080231,1779829842000,-500.0,0.00037257,2]
[423080243,1779829842000,-5113.95130202,0.00037371,2]
[423080232,1779829842000,-500.0,0.00037257,2]
[423080226,1779829842000,-500.0,0.00037257,2]
[423080242,1779829842000,-5000.0,0.00037371,2]
[423080227,1779829842000,-500.0,0.00037257,2]
[423080224,1779829842000,-500.0,0.00037257,2]
[423080225,1779829842000,-500.0,0.00037257,2]
[423080223,1779829842000,-500.0,0.00037257,2]
[423080229,1779829842000,-500.0,0.00037257,2]
[423080228,1779829842000,-500.0,0.00037257,2]
[423080281,1779829843000,-6030.1947,0.00037629,2]
[423080285,1779829843000,-183.69,0.00037659,5]
[423080288,1779829843000,-520.45,0.00037685,6]
[423080283,1779829843000,-2906.1623,0.00037629,2]
[423080282,1779829843000,-2106.9834,0.00037629,2]
[423080279,1779829843000,-400.0,0.00037615,2]
[423080290,1779829843000,-256.59113198,0.00037708,2]
[423080280,1779829843000,-937.0936,0.00037619,30]
[423080273,1779829843000,-140045.06158277,0.000376,30]
[423080274,1779829843000,-648.11332128,0.000376,30]
[423080276,1779829843000,-1697.91513355,0.000376,30]
[423080275,1779829843000,-634.9387198,0.000376,30]
[423080289,1779829843000,-412.04,0.00037698,60]
[423080277,1779829843000,-16078.9712426,0.000376,30]
[423080271,1779829843000,-250.0,0.000376,2]
[423080270,1779829843000,-250.0,0.000376,2]
[423080272,1779829843000,-296.16,0.000376,90]
[423080278,1779829843000,-400.0,0.00037615,2]
[423080284,1779829843000,-487.61350891,0.00037644,30]
[423080304,1779829843000,-635.60098635,0.00037807,120]
[423080287,1779829843000,-364.31,0.00037685,6]
[423080286,1779829843000,-156.13,0.00037685,6]
[423080309,1779829843000,-793.53447068,0.00037808,7]
[423080308,1779829843000,-390.31378116,0.00037808,7]
[423080307,1779829843000,-307.814804,0.00037808,7]
[423080306,1779829843000,-1717.07210787,0.00037808,7]
[423080305,1779829843000,-192.9995,0.00037808,7]
[423080303,1779829843000,-1573.45,0.00037807,2]
[423080299,1779829843000,-150.0,0.00037784,120]
[423080297,1779829843000,-5000.0,0.00037768,2]
[423080300,1779829843000,-1389.391,0.000378,60]
[423080298,1779829843000,-487.61350891,0.00037781,30]
[423080296,1779829843000,-5000.0,0.00037768,2]
[423080294,1779829843000,-5000.0,0.00037768,2]
[423080295,1779829843000,-5000.0,0.00037768,2]
[423080293,1779829843000,-5000.0,0.00037768,2]
[423080291,1779829843000,-200.0,0.0003771,30]
[423080302,1779829843000,-1573.45,0.00037807,2]
[423080292,1779829843000,-5000.0,0.00037768,2]
[423080301,1779829843000,-1389.39,0.000378,60]
[423080310,1779829844000,-1268.5819215,0.00025629,2]
[423080315,1779829846000,-418.0,0.0003483,2]
[423080312,1779829846000,-2473.7375,0.00025629,2]
[423080313,1779829846000,-4241.83926485,0.00025629,2]
[423080316,1779829846000,-375.22,0.000356,10]
[423080317,1779829846000,-2000.0,0.0003726,30]
[423080314,1779829846000,-418.0,0.0003183,2]
[423080322,1779829846000,-3031.57914114,0.00037808,7]
[423080321,1779829846000,-22736.400278,0.00037808,7]
[423080318,1779829846000,-19527.66511429,0.00037808,7]
[423080320,1779829846000,-22736.400278,0.00037808,7]
[423080319,1779829846000,-22736.400278,0.00037808,7]
[423080323,1779829846000,-7720.75233612,0.00037808,7]
[423080324,1779829865000,184.98778867,0.00021478,120]
[423080331,1779830461000,156.89,0.00012957,2]
[423080330,1779830461000,156.89,0.00012032,2]
[423080329,1779830461000,156.89,0.00011106,2]
[423080328,1779830461000,156.89,0.00010181,2]
[423080333,1779830462000,156.89,0.00014808,2]
[423080332,1779830462000,156.89,0.00013883,2]
[423080334,1779830491000,93696.08757085,0.00015,2]
[423080336,1779830550000,1085.56,9.04e-05,2]
[423080350,1779830779000,-14729.51598882,0.00016809,5]
[423080353,1779830779000,-300.77595751,0.00017197,2]
[423080352,1779830779000,-164.81804905,0.00017197,2]
[423080351,1779830779000,-150.0,0.00016992,2]
[423080349,1779830779000,-300.0,0.00016808,2]
[423080348,1779830779000,-300.0,0.00016808,2]
[423080347,1779830779000,-1200.0,0.00016808,2]
[423080339,1779830779000,-500.0,0.00015634,2]
[423080346,1779830779000,-300.0,0.00016808,2]
[423080344,1779830779000,-156.89,0.00016659,2]
[423080343,1779830779000,-249.0,0.00016319,2]
[423080342,1779830779000,-150.0,0.00016159,2]
[423080341,1779830779000,-163.5,0.00015734,2]
[423080340,1779830779000,-156.89,0.00015734,2]
[423080354,1779830779000,-250.0,0.00017197,2]
[423080345,1779830779000,-300.0,0.00016808,2]
[423080355,1779830779000,-163.12,0.00017439,2]
[423080369,1779830779000,-290.00527865,0.000179,2]
[423080357,1779830779000,-8349.93,0.00017617,2]
[423080356,1779830779000,-156.89,0.00017585,2]
[423080372,1779830779000,-156.98,0.00018196,2]
[423080371,1779830779000,-1935.58016096,0.00017966,2]
[423080370,1779830779000,-810.51,0.00017903,2]
[423080368,1779830779000,-290.00527866,0.000179,2]
[423080367,1779830779000,-290.00527866,0.000179,2]
[423080366,1779830779000,-290.00527867,0.000179,2]
[423080373,1779830779000,-420.0,0.00018362,2]
[423080364,1779830779000,-362.50659834,0.000179,2]
[423080363,1779830779000,-435.00791798,0.000179,2]
[423080362,1779830779000,-2109.30044658,0.000179,2]
[423080360,1779830779000,-793.76,0.00017792,2]
[423080361,1779830779000,-564.38,0.00017792,2]
[423080358,1779830779000,-1852.42,0.00017659,2]
[423080359,1779830779000,-9644.59,0.00017659,2]
[423080365,1779830779000,-362.50659833,0.000179,2]
[423080387,1779830780000,-500.0,0.00018888,2]
[423080386,1779830780000,-500.0,0.00018888,2]
[423080383,1779830780000,-415.76144708,0.00018888,2]
[423080385,1779830780000,-500.0,0.00018888,2]
[423080384,1779830780000,-500.0,0.00018888,2]
[423080381,1779830780000,-500.0,0.00018888,2]
[423080382,1779830780000,-500.0,0.00018888,2]
[423080378,1779830780000,-165.34624757,0.00018789,2]
[423080380,1779830780000,-500.0,0.00018888,2]
[423080377,1779830780000,-5279.21528829,0.00018789,2]
[423080375,1779830780000,-156.89,0.0001851,2]
[423080376,1779830780000,-664.84920757,0.00018789,2]
[423080374,1779830780000,-705.0,0.00018431,2]
[423080389,1779830780000,-500.0,0.00018888,2]
[423080379,1779830780000,-1100.38972464,0.00018887,5]
[423080388,1779830780000,-500.0,0.00018888,2]
[423080403,1779830780000,-500.0,0.00018888,2]
[423080392,1779830780000,-1086.10079431,0.00018888,5]
[423080406,1779830780000,-817.9196516,0.00018888,2]
[423080405,1779830780000,-500.0,0.00018888,2]
[423080407,1779830780000,-500.0,0.00018888,2]
[423080404,1779830780000,-500.0,0.00018888,2]
[423080402,1779830780000,-239.69702494,0.00018888,2]
[423080401,1779830780000,-500.0,0.00018888,2]
[423080400,1779830780000,-500.0,0.00018888,2]
[423080390,1779830780000,-610.43,0.00018888,2]
[423080398,1779830780000,-500.0,0.00018888,2]
[423080396,1779830780000,-500.0,0.00018888,2]
[423080397,1779830780000,-391.93782887,0.00018888,2]
[423080395,1779830780000,-382.45299176,0.00018888,2]
[423080394,1779830780000,-380.03099185,0.00018888,2]
[423080393,1779830780000,-500.0,0.00018888,2]
[423080391,1779830780000,-1100.38972464,0.00018888,5]
[423080399,1779830780000,-500.0,0.00018888,2]
[423080422,1779830781000,-500.0,0.00018888,2]
[423080421,1779830781000,-817.9196516,0.00018888,2]
[423080420,1779830781000,-817.9196516,0.00018888,2]
[423080419,1779830781000,-154.21399013,0.00018888,2]
[423080418,1779830781000,-500.0,0.00018888,2]
[423080417,1779830781000,-817.9196516,0.00018888,2]
[423080416,1779830781000,-418.81720074,0.00018888,2]
[423080411,1779830781000,-500.0,0.00018888,2]
[423080414,1779830781000,-500.0,0.00018888,2]
[423080413,1779830781000,-500.0,0.00018888,2]
[423080412,1779830781000,-817.9196516,0.00018888,2]
[423080410,1779830781000,-500.0,0.00018888,2]
[423080409,1779830781000,-500.0,0.00018888,2]
[423080423,1779830781000,-817.9196516,0.00018888,2]
[423080415,1779830781000,-817.9196516,0.00018888,2]
[423080408,1779830781000,-817.9196516,0.00018888,2]
[423080425,1779830781000,-817.9196516,0.00018888,2]
[423080426,1779830781000,-817.9196516,0.00018888,2]
[423080424,1779830781000,-500.0,0.00018888,2]
[423080440,1779830781000,-817.9196516,0.00018888,2]
[423080439,1779830781000,-817.9196516,0.00018888,2]
[423080437,1779830781000,-817.9196516,0.00018888,2]
[423080438,1779830781000,-817.9196516,0.00018888,2]
[423080436,1779830781000,-817.9196516,0.00018888,2]
[423080435,1779830781000,-817.9196516,0.00018888,2]
[423080441,1779830781000,-817.9196516,0.00018888,2]
[423080433,1779830781000,-817.9196516,0.00018888,2]
[423080432,1779830781000,-817.9196516,0.00018888,2]
[423080431,1779830781000,-817.9196516,0.00018888,2]
[423080430,1779830781000,-817.9196516,0.00018888,2]
[423080429,1779830781000,-817.9196516,0.00018888,2]
[423080428,1779830781000,-817.9196516,0.00018888,2]
[423080427,1779830781000,-817.9196516,0.00018888,2]
[423080434,1779830781000,-817.9196516,0.00018888,2]
[423080453,1779830782000,-817.9196516,0.00018888,2]
[423080452,1779830782000,-817.9196516,0.00018888,2]
[423080451,1779830782000,-817.9196516,0.00018888,2]
[423080450,1779830782000,-817.9196516,0.00018888,2]
[423080449,1779830782000,-817.9196516,0.00018888,2]
[423080447,1779830782000,-817.9196516,0.00018888,2]
[423080444,1779830782000,-817.9196516,0.00018888,2]
[423080446,1779830782000,-817.9196516,0.00018888,2]
[423080445,1779830782000,-817.9196516,0.00018888,2]
[423080442,1779830782000,-817.9196516,0.00018888,2]
[423080443,1779830782000,-817.9196516,0.00018888,2]
[423080455,1779830782000,-817.9196516,0.00018888,2]
[423080448,1779830782000,-817.9196516,0.00018888,2]
[423080454,1779830782000,-817.9196516,0.00018888,2]
[423080459,1779830782000,-817.9196516,0.00018888,2]
[423080457,1779830782000,-817.9196516,0.00018888,2]
[423080456,1779830782000,-817.9196516,0.00018888,2]
[423080468,1779830782000,-817.9196516,0.00018888,2]
[423080467,1779830782000,-817.9196516,0.00018888,2]
[423080466,1779830782000,-817.9196516,0.00018888,2]
[423080465,1779830782000,-817.9196516,0.00018888,2]
[423080464,1779830782000,-817.9196516,0.00018888,2]
[423080469,1779830782000,-817.9196516,0.00018888,2]
[423080463,1779830782000,-817.9196516,0.00018888,2]
[423080461,1779830782000,-817.9196516,0.00018888,2]
[423080460,1779830782000,-817.9196516,0.00018888,2]
[423080470,1779830782000,-817.9196516,0.00018888,2]
[423080458,1779830782000,-817.9196516,0.00018888,2]
[423080462,1779830782000,-817.9196516,0.00018888,2]
[423080480,1779830783000,-1500.29833235,0.00018888,2]
[423080478,1779830783000,-1500.29833235,0.00018888,2]
[423080477,1779830783000,-1500.29833235,0.00018888,2]
[423080476,1779830783000,-1500.29833235,0.00018888,2]
[423080473,1779830783000,-1500.29833235,0.00018888,2]
[423080474,1779830783000,-1500.29833235,0.00018888,2]
[423080472,1779830783000,-1500.29833235,0.00018888,2]
[423080471,1779830783000,-817.9196516,0.00018888,2]
[423080479,1779830783000,-1500.29833235,0.00018888,2]
[423080475,1779830783000,-1500.29833235,0.00018888,2]
[423080482,1779830783000,-1500.29833235,0.00018888,2]
[423080481,1779830783000,-1500.29833235,0.00018888,2]
[423080484,1779830783000,-1500.29833235,0.00018888,2]
[423080483,1779830783000,-1500.29833235,0.00018888,2]
[423080495,1779830783000,-1500.29833235,0.00018888,2]
[423080494,1779830783000,-1500.29833235,0.00018888,2]
[423080493,1779830783000,-1500.29833235,0.00018888,2]
[423080491,1779830783000,-1500.29833235,0.00018888,2]
[423080490,1779830783000,-1500.29833235,0.00018888,2]
[423080492,1779830783000,-1500.29833235,0.00018888,2]
[423080488,1779830783000,-1500.29833235,0.00018888,2]
[423080485,1779830783000,-1500.29833235,0.00018888,2]
[423080487,1779830783000,-1500.29833235,0.00018888,2]
[423080486,1779830783000,-1500.29833235,0.00018888,2]
[423080489,1779830783000,-1500.29833235,0.00018888,2]
[423080504,1779830784000,-1555.86493727,0.00018888,2]
[423080509,1779830784000,-103877.6555,0.00018889,2]
[423080510,1779830784000,-500.0,0.00018989,2]
[423080508,1779830784000,-732805.833,0.00018889,2]
[423080505,1779830784000,-1555.86493727,0.00018888,2]
[423080507,1779830784000,-1555.86493724,0.00018888,2]
[423080506,1779830784000,-1555.86493727,0.00018888,2]
[423080497,1779830784000,-1500.29833235,0.00018888,2]
[423080502,1779830784000,-1555.86493727,0.00018888,2]
[423080501,1779830784000,-1555.86493727,0.00018888,2]
[423080500,1779830784000,-1555.86493727,0.00018888,2]
[423080498,1779830784000,-1500.29833235,0.00018888,2]
[423080499,1779830784000,-1500.29833235,0.00018888,2]
[423080496,1779830784000,-1500.29833235,0.00018888,2]
[423080511,1779830784000,-664.06,0.00018989,2]
[423080503,1779830784000,-1555.86493727,0.00018888,2]
[423080512,1779830784000,-500.0,0.00018989,2]
[423080531,1779830784000,-500.0,0.00019525,2]
[423080514,1779830784000,-5235.90873109,0.00019,2]
[423080529,1779830784000,-500.0,0.00019525,2]
[423080530,1779830784000,-500.0,0.00019525,2]
[423080527,1779830784000,-664.06,0.00019525,2]
[423080528,1779830784000,-664.06,0.00019525,2]
[423080526,1779830784000,-664.06,0.00019525,2]
[423080525,1779830784000,-500.0,0.00019525,2]
[423080513,1779830784000,-1690.0,0.00019,2]
[423080523,1779830784000,-500.0,0.00019525,2]
[423080524,1779830784000,-500.0,0.00019525,2]
[423080522,1779830784000,-500.0,0.00019525,2]
[423080519,1779830784000,-500.0,0.00019525,2]
[423080520,1779830784000,-500.0,0.00019525,2]
[423080517,1779830784000,-500.0,0.00019525,2]
[423080518,1779830784000,-500.0,0.00019525,2]
[423080515,1779830784000,-156.89,0.00019436,2]
[423080516,1779830784000,-500.0,0.00019525,2]
[423080521,1779830784000,-239.76,0.00019525,2]
[423080532,1779830785000,-379.0,0.0002,2]
[423080533,1779830785000,-1554.6694724,0.0002,2]
[423080534,1779830785000,-178.8908017,0.0002,2]
[423080537,1779830785000,-16263.11811533,0.0002,2]
[423080536,1779830785000,-3950.0,0.0002,2]
[423080538,1779830785000,305.2463278,0.00016708,2]
[423080535,1779830785000,-25938.27212302,0.0002,2]
[423080539,1779830790000,305.24632778,0.00017748,2]
[423080540,1779830796000,305.24632778,0.00018788,2]
[423080541,1779830800000,-349.02543697,0.00020016,2]
[423080544,1779830802000,500.0,0.00018888,2]
[423080543,1779830802000,500.0,0.00018888,2]
[423080542,1779830802000,500.0,0.00018888,2]
[423080545,1779830803000,500.0,0.00018888,2]
[423080549,1779831031000,-390.3,0.0001841,2]
[423080548,1779831031000,-390.3,0.00016438,2]
[423080551,1779831031000,-215.35456303,0.00020016,2]
[423080552,1779831031000,-119.07381159,0.00020345,2]
[423080550,1779831031000,-253.0,0.0002,2]
[423080606,1779831032000,-150.0,0.00027099,4]
[423080593,1779831032000,-390.3,0.00026296,2]
[423080597,1779831032000,-253.0,0.000267,7]
[423080596,1779831032000,-564.38,0.00026688,2]
[423080619,1779831032000,-390.3,0.00028267,2]
[423080598,1779831032000,-462.69,0.00026875,2]
[423080600,1779831032000,-156.98,0.00027072,2]
[423080603,1779831032000,-150.0,0.00027099,4]
[423080602,1779831032000,-150.0,0.00027099,4]
[423080604,1779831032000,-150.0,0.00027099,4]
[423080605,1779831032000,-150.0,0.00027099,4]
[423080608,1779831032000,-150.0,0.00027099,4]
[423080615,1779831032000,-266.86,0.00027912,30]
[423080607,1779831032000,-150.0,0.00027099,4]
[423080609,1779831032000,-150.0,0.000274,7]
[423080612,1779831032000,-215.42269777,0.0002756,2]
[423080610,1779831032000,-253.0,0.000275,7]
[423080613,1779831032000,-507.0,0.00027578,4]
[423080591,1779831032000,-462.69,0.0002622,2]
[423080616,1779831032000,-184.23,0.00027936,30]
[423080617,1779831032000,-150.0,0.00028002,7]
[423080614,1779831032000,-150.0,0.00027701,7]
[423080618,1779831032000,-462.69,0.00028186,2]
[423080623,1779831032000,-150.0,0.00028604,7]
[423080620,1779831032000,-150.0,0.00028303,7]
[423080611,1779831032000,-462.69,0.00027531,2]
[423080587,1779831032000,-163.12,0.00026158,2]
[423080568,1779831032000,-199.89349423,0.00023248,2]
[423080585,1779831032000,-5000.0,0.00026108,2]
[423080553,1779831032000,-44.04618841,0.00020345,2]
[423080554,1779831032000,-156.89,0.00020361,2]
[423080556,1779831032000,-166.66,0.0002063,2]
[423080557,1779831032000,-500.0,0.00021578,2]
[423080555,1779831032000,-390.3,0.00020381,2]
[423080558,1779831032000,-166.66,0.00021715,2]
[423080559,1779831032000,-3177.57,0.00021828,2]
[423080561,1779831032000,-300.0,0.00022195,2]
[423080560,1779831032000,-1109.94,0.0002207,2]
[423080562,1779831032000,-3115.33282386,0.00022196,2]
[423080564,1779831032000,-390.3,0.00022353,2]
[423080563,1779831032000,-564.38,0.0002224,2]
[423080589,1779831032000,-587.0,0.00026198,2]
[423080566,1779831032000,-156.98,0.00022634,2]
[423080569,1779831032000,-163.12,0.00023251,2]
[423080567,1779831032000,-166.66,0.00022801,30]
[423080570,1779831032000,-163.65,0.00023282,2]